bitfinex/quotes_ETHUSD_20240714
["timestamp","ask_amount","ask_price","bid_price","bid_amount"]
[1720967652248,1.63616254,3192.7,3192.0,2.5689098]
[1720967652471,1.63542722,3192.9,3192.0,2.50626]
[1720967652765,2.03092994,3192.9,3192.0,2.50626]
[1720967653770,1.63542722,3192.9,3192.1,2.50617]
[1720967653948,1.63542722,3192.9,3192.1,2.56881556]
[1720967654149,1.63542722,3192.9,3192.1,2.50617]
[1720967654374,1.63542722,3192.9,3192.0,2.3321]
[1720967654667,1.63542722,3192.9,3192.0,3.0]
[1720967654668,0.04592032,3192.8,3192.0,3.0]
[1720967655165,1.63542722,3192.9,3192.0,6.497618]
[1720967655569,1.68134754,3193.0,3192.0,3.991368]
[1720967655771,1.68084986,3192.9,3192.0,6.497618]
[1720967655980,1.63492954,3192.9,3192.0,6.497618]
[1720967656157,1.63490561,3192.9,3192.0,6.497618]
[1720967656478,1.63490561,3193.0,3192.0,6.497618]
[1720967656657,0.39545056,3192.9,3192.0,6.497618]
[1720967657979,0.39545056,3192.9,3192.0,3.991368]
[1720967658281,2.03035617,3192.9,3192.0,3.0]
[1720967658467,2.03001015,3192.9,3191.9,4.901]
[1720967658671,0.04592032,3192.8,3191.9,3.0]
[1720967659282,1.63454444,3193.0,3191.9,3.0]
[1720967659455,1.63454444,3193.0,3192.0,2.50625]
[1720967659647,0.49176928,3192.6,3192.0,4.17302877]
[1720967662487,0.49176928,3192.6,3191.9,4.901]
[1720967664886,2.41612032,3192.5,3191.9,3.0]
[1720967665074,2.41612032,3192.5,3191.8,6.75418765]
[1720967665260,2.3702,3192.5,3191.8,6.75418765]
[1720967666457,0.49176928,3192.6,3191.8,6.75418765]
[1720967666652,0.49176928,3192.6,3191.8,7.68025342]
[1720967667208,0.49176928,3192.6,3191.9,2.50631]
[1720967667354,0.49176928,3192.6,3191.8,6.75418765]
[1720967667951,0.49176928,3192.6,3191.9,2.5063]
[1720967671171,0.49176928,3192.6,3191.9,2.56894526]
[1720967671373,0.49176928,3192.6,3191.9,3.87935529]
[1720967673395,0.49176928,3192.6,3191.8,9.26060765]
[1720967673896,0.49176928,3192.6,3191.8,11.76702765]
[1720967674058,0.49176928,3192.6,3191.8,9.26060765]
[1720967674254,0.49176928,3192.6,3191.9,2.50628]
[1720967674768,0.49176928,3192.6,3191.8,11.76696765]
[1720967675095,0.49176928,3192.6,3191.9,2.50631]
[1720967676806,0.49176928,3192.6,3192.0,2.50626]
[1720967677362,2.12819673,3192.6,3192.0,2.50626]
[1720967677555,0.49176928,3192.6,3192.2,2.50609]
[1720967678462,0.49176928,3192.6,3192.4,2.50595]
[1720967679268,0.49176928,3192.6,3192.5,2.50587]
[1720967679469,0.49176928,3192.6,3192.5,4.40687]
[1720967680963,0.49176928,3192.6,3192.5,6.91274]
[1720967681164,0.49176928,3192.6,3192.5,7.604014]
[1720967681366,0.49176928,3192.6,3192.5,10.604014]
[1720967686266,0.49176928,3192.6,3192.5,13.109884]
[1720967686478,0.49176928,3192.6,3192.5,13.659884]
[1720967691184,0.49176928,3192.6,3192.5,16.118084]
[1720967691398,0.49176928,3192.6,3192.5,14.217084]
[1720967691697,0.49176928,3192.6,3192.5,16.118084]
[1720967695929,0.49176928,3192.6,3192.5,3.0]
[1720967696097,0.49176928,3192.6,3192.0,0.58545051]
[1720967696098,0.49176928,3192.6,3192.3,1.901]
[1720967696921,0.49176928,3192.6,3192.5,2.50587]
[1720967697228,0.49176928,3192.6,3192.5,5.50587]
[1720967697625,0.49176928,3192.6,3192.5,3.0]
[1720967697833,2.96196928,3192.6,3192.5,3.0]
[1720967697995,2.96196928,3192.6,3192.1,2.50615]
[1720967697996,2.96196928,3192.6,3192.2,3.0]
[1720967698196,2.96196928,3192.6,3192.2,5.5061]
[1720967699289,0.49176928,3192.6,3192.3,2.50602]
[1720967699494,0.49176928,3192.6,3192.4,3.0]
[1720967700796,0.49176928,3192.6,3192.3,3.0]
[1720967701420,0.49176928,3192.6,3192.3,5.50602]
[1720967702409,0.49176928,3192.6,3192.4,1.901]
[1720967702614,0.49176928,3192.6,3192.5,3.25283616]
[1720967702846,0.49176928,3192.6,3192.5,6.25283616]
[1720967703351,0.49176928,3192.6,3192.5,5.50587]
[1720967703853,0.49176928,3192.6,3192.5,3.0]
[1720967705018,0.49176928,3192.6,3192.4,3.0]
[1720967705216,0.49176928,3192.6,3192.4,5.50594]
[1720967707424,0.49176928,3192.6,3192.4,3.0]
[1720967707628,0.49176928,3192.6,3192.1,4.40715]
[1720967707629,0.49176928,3192.6,3192.3,3.0]
[1720967707839,0.49176928,3192.6,3192.1,1.901]
[1720967708057,0.49176928,3192.6,3191.9,2.50631]
[1720967708058,2.59259431,3192.6,3191.9,2.50631]
[1720967708258,1.640571,3192.5,3191.9,2.50631]
[1720967709222,1.640571,3192.4,3191.9,2.50631]
[1720967709453,1.640571,3192.4,3192.0,3.0]
[1720967709813,1.640571,3192.5,3192.0,3.0]
[1720967710018,2.13234028,3192.6,3192.1,4.40713]
[1720967710324,2.13234028,3192.6,3192.5,1.901]
[1720967710526,0.49176928,3192.6,3192.5,4.40687]
[1720967715266,0.49176928,3192.6,3192.5,6.91274]
[1720967715574,0.49176928,3192.6,3192.5,7.604014]
[1720967716593,0.49176928,3192.6,3192.5,10.604014]
[1720967718268,0.49176928,3192.6,3192.5,9.91274]
[1720967718450,0.49176928,3192.6,3192.5,7.40687]
[1720967724673,2.84756928,3192.6,3192.5,3.0]
[1720967724897,2.84756928,3192.6,3192.1,7.40711]
[1720967725096,1.64365684,3192.4,3192.2,2.5061]
[1720967725302,1.64365684,3192.5,3192.3,3.0]
[1720967725596,1.64365684,3192.4,3192.3,3.0]
[1720967726158,1.64365684,3192.5,3192.3,3.0]
[1720967726990,1.64365684,3192.5,3192.4,2.50595]
[1720967727294,2.13542612,3192.6,3192.5,2.50587]
[1720967727501,2.13542612,3192.6,3192.5,5.50587]
[1720967727700,0.49176928,3192.6,3192.5,5.50587]
[1720967728006,2.13565323,3192.6,3192.5,6.381123]
[1720967728355,2.13565323,3192.6,3192.5,8.282123]
[1720967729184,0.49176928,3192.6,3192.5,8.282123]
[1720967729400,2.13565323,3192.6,3192.5,8.282123]
[1720967730594,2.13565323,3192.6,3192.5,10.787993]
[1720967730799,0.49176928,3192.6,3192.5,10.787993]
[1720967731672,0.56714314,3192.6,3192.5,10.787993]
[1720967732417,0.49176928,3192.6,3192.5,10.787993]
[1720967733336,1.97315724,3193.3,3192.9,2.50555]
[1720967733337,1.6442977,3193.3,3192.9,2.50555]
[1720967733484,1.6442977,3193.5,3193.4,2.50516]
[1720967733687,1.6442977,3193.5,3193.4,4.40616]
[1720967734184,0.49156937,3193.5,3193.4,4.40616]
[1720967734426,0.49156937,3193.5,3193.4,9.91132]
[1720967734720,0.49156937,3193.5,3193.4,10.902452]
[1720967735218,0.56654022,3193.5,3193.4,10.902452]
[1720967735523,0.56654022,3193.5,3193.4,8.397292]
[1720967735822,0.56654022,3193.5,3193.4,5.50516]
[1720967736816,0.56654022,3193.5,3193.4,3.0]
[1720967737121,0.56654022,3193.5,3193.0,4.40641]
[1720967737122,0.56654022,3193.5,3193.1,3.0]
[1720967739806,0.56654022,3193.5,3193.2,2.56786803]
[1720967740005,0.56654022,3193.5,3193.3,3.0]
[1720967740218,0.56654022,3193.5,3193.4,0.550524]
[1720967740422,0.56654022,3193.5,3193.4,3.055684]
[1720967740941,0.56654022,3193.5,3193.4,7.956684]
[1720967742414,0.56654022,3193.5,3193.4,10.461844]
[1720967747375,0.56654022,3193.5,3193.4,4.901]
[1720967747535,0.56654022,3193.5,3193.3,3.0]
[1720967747734,0.56654022,3193.5,3193.3,5.50524]
[1720967749966,0.56654022,3193.5,3193.3,3.0]
[1720967750941,0.56654022,3193.5,3193.1,5.50539]
[1720967751125,0.56654022,3193.5,3193.2,2.5053]
[1720967751450,0.56654022,3193.5,3193.3,3.0]
[1720967757272,0.56654022,3193.5,3193.1,6.496576]
[1720967757581,0.49156937,3193.5,3193.1,3.991186]
[1720967757775,0.49156937,3193.5,3192.5,10.13529065]
[1720967757776,2.46962032,3193.4,3192.5,10.13529065]
[1720967757949,1.64096389,3193.3,3192.5,6.75418765]
[1720967758147,4.06466389,3193.1,3192.5,6.75418765]
[1720967758350,4.06466389,3193.1,3192.9,0.793]
[1720967758659,1.7159165,3193.0,3192.5,6.75418765]
[1720967758847,1.64065053,3192.8,3192.7,0.793]
[1720967759270,1.71546148,3192.8,3192.7,0.793]
[1720967760178,0.07481095,3192.8,3192.7,0.793]
[1720967760355,1.64065053,3192.9,3192.5,6.75418765]
[1720967760557,1.6405857,3193.0,3192.5,6.75418765]
[1720967761235,1.6405857,3192.9,3192.5,6.75418765]
[1720967761441,1.6405857,3193.0,3192.5,6.75418765]
[1720967761782,1.6405857,3193.0,3192.6,4.40878]
[1720967762881,1.6405857,3193.0,3192.9,2.50555]
[1720967763184,0.07212164,3193.0,3192.9,2.50555]
[1720967763778,0.07213714,3193.0,3192.9,2.50555]
[1720967763964,1.6405989,3193.3,3193.0,2.50547]
[1720967764160,0.07225895,3193.2,3193.0,3.00658]
[1720967764474,1.6405989,3193.4,3193.0,3.00658]
[1720967764675,0.07219805,3193.1,3193.0,3.06920828]
[1720967764837,1.6405989,3193.4,3193.0,3.00658]
[1720967765043,0.07219805,3193.1,3193.0,3.00658]
[1720967765278,1.6405989,3193.4,3193.0,3.00658]
[1720967765455,0.49156937,3193.5,3193.0,3.00658]
[1720967765456,0.49156937,3193.5,3193.1,5.86867628]
[1720967765842,0.49156937,3193.5,3193.1,5.806048]
[1720967766578,0.49156937,3193.5,3193.1,5.86867524]
[1720967766775,0.07239997,3193.4,3193.1,5.86867524]
[1720967767142,0.07239997,3193.4,3193.2,2.50528]
[1720967767343,0.07239997,3193.4,3193.3,3.15472101]
[1720967767855,0.07239997,3193.4,3193.3,0.58685652]
[1720967768051,0.07239997,3193.4,3193.2,2.50528]
[1720967768440,0.07239997,3193.4,3193.1,3.0]
[1720967768664,0.07239997,3193.4,3192.7,3.0]
[1720967768871,4.592597,3193.5,3192.7,3.0]
[1720967769059,4.592597,3193.5,3192.7,5.50566]
[1720967769258,4.10102763,3193.5,3192.9,2.50554]
[1720967769476,4.10102763,3193.5,3192.7,5.50566]
[1720967769477,0.07240245,3193.4,3192.7,3.0]
[1720967769677,2.4599,3193.5,3192.7,3.0]
[1720967769678,1.64149383,3193.3,3192.7,3.0]
[1720967769896,2.4599,3193.5,3192.7,3.0]
[1720967769897,1.64149383,3193.2,3192.7,3.0]
[1720967770088,4.10139383,3193.1,3192.7,3.0]
[1720967770445,2.4599,3193.1,3192.7,5.50569]
[1720967770646,2.4599,3193.1,3192.7,7.17256176]
[1720967770879,2.4599,3193.1,3192.7,4.66687176]
[1720967771045,2.4599,3193.1,3192.7,3.0]
[1720967772250,2.4599,3193.1,3192.7,5.50571]
[1720967772689,1.6413867,3193.2,3192.7,5.50571]
[1720967772988,1.64173002,3193.2,3192.7,5.50571]
[1720967775769,1.64173002,3193.0,3192.6,8.65718765]
[1720967775976,1.64173002,3192.9,3192.6,11.16297765]
[1720967776195,2.4179,3193.4,3192.6,11.16297765]
[1720967776393,1.64186435,3193.0,3192.6,11.16297765]
[1720967777486,1.64186435,3193.0,3192.7,2.50569]
[1720967778401,1.64186435,3193.0,3192.8,2.50563]
[1720967778753,0.07182922,3192.9,3192.8,2.50563]
[1720967778957,0.07182922,3192.9,3192.8,8.01126]
[1720967779492,2.4179,3193.7,3192.9,2.50554]
[1720967779693,1.64188475,3193.2,3192.9,2.50554]
[1720967779861,1.64188475,3193.2,3193.0,0.550554]
[1720967780053,0.07195104,3193.1,3193.0,3.056034]
[1720967782684,0.07195104,3193.1,3193.0,7.464514]
[1720967782870,0.07195104,3193.1,3193.0,15.954594]
[1720967783060,2.13396565,3193.6,3193.3,2.50518]
[1720967783265,0.49163084,3193.6,3193.4,3.0]
[1720967783465,2.13396565,3193.6,3193.4,3.0]
[1720967783779,2.13396565,3193.6,3193.2,1.903]
[1720967783780,2.4179,3193.5,3193.2,1.903]
[1720967783978,2.4179,3193.5,3192.8,2.50558]
[1720967783979,1.64233481,3193.4,3192.8,2.50558]
[1720967784304,2.4179,3193.5,3192.7,5.9186029]
[1720967784305,1.64233481,3193.3,3192.9,3.0]
[1720967784478,1.64233481,3193.2,3192.8,2.50563]
[1720967784675,1.64233481,3193.3,3192.8,2.50563]
[1720967784999,1.64233481,3193.2,3192.9,3.0]
[1720967785712,2.4179,3193.5,3192.9,3.0]
[1720967785912,1.64227353,3193.3,3192.9,3.0]
[1720967786082,2.4179,3193.5,3192.9,3.84242329]
[1720967786286,1.64230288,3193.3,3192.9,3.84242329]
[1720967786606,0.07182662,3193.2,3192.9,3.84242329]
[1720967787011,1.64230288,3193.3,3192.9,6.34797329]
[1720967787305,0.07176571,3193.1,3192.9,6.34797329]
[1720967787609,1.64230288,3193.3,3193.0,0.63479733]
[1720967787783,1.64230288,3193.3,3192.9,5.50555]
[1720967788902,1.64230288,3193.3,3193.1,2.50538]
[1720967789312,1.64230288,3193.3,3193.2,2.50532]
[1720967789615,1.64276923,3193.4,3193.3,2.50519]
[1720967789813,1.64276923,3193.5,3193.4,2.50516]
[1720967790123,0.49163084,3193.6,3193.4,2.50516]
[1720967790270,1.64285869,3193.5,3193.4,2.50516]
[1720967790772,0.49163084,3193.6,3193.5,2.50508]
[1720967790983,2.13465669,3193.6,3193.5,2.50508]
[1720967792625,0.49163084,3193.6,3193.5,2.50508]
[1720967792797,2.13494058,3193.6,3193.5,3.056216]
[1720967793694,2.20701557,3193.6,3193.5,3.056216]
[1720967795710,0.56370583,3193.6,3193.5,3.056216]
[1720967796013,0.56370583,3193.6,3193.5,5.561296]
[1720967797809,0.56370583,3193.6,3193.5,8.561296]
[1720967798196,0.49163084,3193.6,3193.5,8.561296]
[1720967798712,0.49163084,3193.6,3193.5,8.536296]
[1720967798939,0.49163084,3193.6,3193.5,11.041376]
[1720967799818,0.49163084,3193.6,3193.5,8.536296]
[1720967801106,0.49163084,3193.6,3193.4,2.5051]
[1720967801311,0.49163084,3193.6,3193.5,3.0]
[1720967801312,0.56376285,3193.6,3193.5,3.0]
[1720967802191,0.56376285,3193.6,3193.5,5.50508]
[1720967807388,0.56376285,3193.6,3193.5,7.40808]
[1720967807641,0.56376285,3193.6,3193.5,9.91316]
[1720967807803,0.56376285,3193.6,3193.5,11.141196]
[1720967808005,0.49163084,3193.6,3193.5,11.141196]
[1720967811245,2.82743084,3193.6,3193.5,3.0]
[1720967811455,0.49163084,3193.6,3193.5,3.0]
[1720967811731,0.5637742,3193.6,3193.5,3.0]
[1720967812132,0.5637742,3193.6,3193.1,4.903]
[1720967812565,0.49163084,3193.6,3193.1,4.903]
[1720967812840,0.49163084,3193.6,3193.5,2.50508]
[1720967813001,0.49163084,3193.6,3193.5,5.50508]
[1720967815218,0.56377296,3193.6,3193.5,5.50508]
[1720967818148,0.56377296,3193.6,3193.5,7.40808]
[1720967818350,0.49163084,3193.6,3193.5,6.29708]
[1720967819351,0.49163084,3193.6,3193.5,0.792]
[1720967819521,2.4194202,3193.6,3193.5,0.792]
[1720967819726,0.77719313,3193.6,3193.5,0.792]
[1720967820020,2.4194202,3193.6,3193.5,0.792]
[1720967820232,0.77719313,3193.6,3193.5,0.792]
[1720967821326,0.56380734,3193.6,3193.5,0.792]
[1720967822443,4.54195048,3193.6,3193.5,0.792]
[1720967823737,2.20615048,3193.6,3193.5,0.792]
[1720967824957,2.20703687,3193.6,3193.5,0.792]
[1720967825654,2.20703687,3193.6,3193.5,3.29708]
[1720967825814,2.20703687,3193.6,3193.5,3.877312]
[1720967826018,2.20703687,3193.6,3193.5,3.29708]
[1720967826818,2.13486037,3193.6,3193.5,3.29708]
[1720967827019,0.56360414,3193.6,3193.5,3.29708]
[1720967827439,2.207572,3193.6,3193.5,3.29708]
[1720967828220,0.56360414,3193.6,3193.5,3.29708]
[1720967828456,0.49163084,3193.6,3193.5,3.29708]
[1720967828629,0.56360414,3193.6,3193.5,0.792]
[1720967829221,0.56360414,3193.6,3193.5,3.29708]
[1720967832768,0.56360414,3193.6,3193.5,6.29708]
[1720967834845,0.49163084,3193.6,3193.5,6.29708]
[1720967835034,0.56350911,3193.6,3193.5,7.365712]
[1720967835848,2.30374176,3194.2,3193.7,2.50485]
[1720967836049,3.77447534,3195.5,3193.5,4.860632]
[1720967836050,2.30374176,3194.4,3194.2,0.792]
[1720967836254,5.16139496,3194.7,3194.3,0.792]
[1720967836255,2.30374176,3194.5,3194.3,0.792]
[1720967836457,2.30374176,3194.5,3194.1,2.5046]
[1720967836458,2.30374176,3194.5,3194.4,0.792]
[1720967836855,2.86279861,3194.5,3194.4,0.792]
[1720967837061,0.55905685,3194.5,3194.4,0.792]
[1720967843244,0.55905685,3194.5,3193.9,2.50473]
[1720967843451,1.97345025,3194.3,3194.0,3.0]
[1720967843775,3.32417222,3194.5,3194.2,0.792]
[1720967844008,3.32417222,3194.5,3194.0,3.0]
[1720967844009,3.32417222,3194.5,3194.4,0.792]
[1720967844170,1.0216451,3194.5,3194.4,0.792]
[1720967844368,3.32417222,3194.5,3194.4,0.792]
[1720967847257,1.0216451,3194.5,3194.4,0.792]
[1720967847456,3.32408351,3194.5,3194.4,0.792]
[1720967847652,3.32408351,3194.5,3193.9,3.15334604]
[1720967847653,5.69438351,3194.5,3193.9,3.0]
[1720967847887,2.30252345,3194.3,3194.0,0.792]
[1720967848405,2.30256894,3194.3,3193.8,6.75418765]
[1720967848570,2.30256894,3194.1,3193.9,0.792]
[1720967849265,2.30256894,3194.1,3193.8,6.75418765]
[1720967849266,2.3703,3194.0,3193.8,6.75418765]
[1720967849465,0.46728689,3193.9,3193.8,6.75418765]
[1720967849695,2.83758689,3193.9,3193.8,6.75418765]
[1720967849901,5.55749645,3193.9,3193.8,6.75418765]
[1720967850596,2.83758689,3193.9,3193.8,6.75418765]
[1720967850758,2.3703,3193.9,3193.8,7.54618765]
[1720967851580,2.3703,3193.9,3193.8,0.792]
[1720967852474,2.30172799,3193.9,3193.8,0.792]
[1720967854406,2.30046247,3194.0,3193.8,0.792]
[1720967854581,2.30046247,3194.0,3193.9,0.792]
[1720967854783,2.35,3194.2,3193.9,0.792]
[1720967859603,2.30116048,3194.2,3194.1,0.792]
[1720967859928,5.55962842,3194.5,3194.1,0.792]
[1720967859929,2.30116048,3194.4,3194.1,0.792]
[1720967860080,1.97218557,3194.2,3193.9,2.50477]
[1720967860283,1.97218557,3194.2,3194.1,0.792]
[1720967860926,1.97217177,3194.3,3194.1,0.792]
[1720967861085,1.97217177,3194.3,3194.0,3.250477]
[1720967861086,1.97217177,3194.3,3194.2,0.792]
[1720967861287,1.97217177,3194.3,3193.5,9.24088765]
[1720967861611,1.97225736,3194.2,3194.1,0.792]
[1720967861798,1.97224679,3194.2,3194.1,0.792]
[1720967863854,2.30095018,3194.4,3194.1,0.792]
[1720967864229,1.97218001,3194.2,3194.1,0.792]
[1720967864561,2.30095018,3194.4,3194.1,0.792]
[1720967864729,0.51424269,3194.4,3194.1,0.792]
[1720967864924,2.81517713,3194.4,3194.1,0.792]
[1720967865255,1.97222986,3194.2,3194.1,0.792]
[1720967869055,2.30093444,3194.4,3194.1,0.792]
[1720967869556,1.97227587,3194.2,3194.1,0.792]
[1720967871654,1.97212683,3194.2,3194.1,0.792]
[1720967873050,2.4113,3194.2,3193.7,3.0]
[1720967873270,1.97235746,3194.0,3193.8,0.792]
[1720967873457,1.97235746,3193.9,3193.8,0.792]
[1720967874672,4.71211464,3194.2,3193.8,0.792]
[1720967874673,1.97235746,3194.0,3193.8,0.792]
[1720967874820,1.97240216,3194.0,3193.9,0.792]
[1720967875432,1.97240094,3194.0,3193.9,0.792]
[1720967878113,1.97153665,3194.0,3193.9,0.792]
[1720967881019,1.97134704,3194.0,3193.9,0.792]
[1720967882054,2.40963616,3194.0,3193.5,6.75418765]
[1720967882239,1.97131618,3193.7,3193.5,7.54618765]
[1720967882558,1.97131618,3193.6,3193.5,6.75418765]
[1720967882765,1.97131618,3193.6,3193.3,0.792]
[1720967883218,2.0172365,3193.5,3192.5,4.79525]
[1720967883424,1.6425228,3193.1,3193.0,0.792]
[1720967883846,2.0167335,3193.3,3193.0,0.792]
[1720967884233,2.0167335,3193.3,3192.5,2.2894]
[1720967884523,2.0167335,3193.3,3192.3,4.39001]
[1720967884524,1.97081318,3193.2,3192.9,0.792]
[1720967884765,0.04592032,3193.1,3192.9,0.792]
[1720967885661,2.0167335,3193.1,3192.9,0.792]
[1720967885960,2.0167335,3193.0,3192.7,0.792]
[1720967886158,2.0167335,3193.0,3191.9,5.4521]
[1720967886159,2.4703,3192.9,3191.9,5.4521]
[1720967886328,1.6416458,3192.7,3192.5,0.792]
[1720967886522,0.04592032,3192.6,3192.5,0.792]
[1720967887222,0.11089691,3192.6,3192.5,0.792]
[1720967887420,1.70609006,3192.6,3192.0,3.0]
[1720967887627,1.70609006,3192.6,3192.0,3.62393144]
[1720967887628,1.64111347,3192.5,3192.0,3.62393144]
[1720967887962,1.64111347,3192.5,3192.4,0.792]
[1720967889365,2.4703,3192.9,3192.4,0.792]
[1720967889366,1.64111347,3192.6,3192.4,0.792]
[1720967890133,2.4703,3192.9,3192.4,0.792]
[1720967890468,1.63980159,3192.6,3192.2,3.0]
[1720967890769,1.63980159,3192.6,3192.5,0.792]
[1720967891235,1.63931623,3192.6,3192.5,0.792]
[1720967891574,2.51622032,3192.9,3192.5,0.792]
[1720967891776,0.04592032,3192.9,3191.7,6.75418765]
[1720967891935,3.2012,3192.8,3191.8,0.792]
[1720967892136,0.37063235,3192.7,3192.0,0.792]
[1720967893168,1.63927329,3192.6,3192.0,0.792]
[1720967893843,2.4092,3192.4,3191.7,6.75418765]
[1720967894045,2.4092,3192.2,3191.7,6.75418765]
[1720967894368,0.89643235,3192.1,3191.2,7.54618765]
[1720967895173,0.89643235,3192.1,3191.4,0.792]
[1720967896244,0.89643235,3192.1,3191.2,6.75418765]
[1720967897284,0.49196171,3192.0,3191.2,6.75418765]
[1720967897950,0.04592032,3191.9,3191.2,6.75418765]
[1720967899036,2.4092,3191.8,3191.2,6.75418765]
[1720967899272,2.4092,3191.6,3191.2,6.75418765]
[1720967899543,2.65471203,3191.6,3191.2,6.75418765]
[1720967901578,3.20471203,3191.6,3190.5,26.19918765]
[1720967901784,3.25063235,3191.6,3190.5,26.19918765]
[1720967903957,3.31484685,3191.6,3190.5,26.19918765]
[1720967905002,3.31484685,3191.6,3190.5,6.75418765]
[1720967905567,6.31484685,3191.6,3190.5,6.75418765]
[1720967906192,6.64287227,3191.6,3190.5,6.75418765]
[1720967910509,3.04695195,3191.6,3190.5,6.75418765]
[1720967910724,2.84736024,3191.6,3190.5,6.75418765]
[1720967911509,2.80143992,3191.6,3190.5,6.75418765]
[1720967912398,3.35143992,3191.6,3190.5,6.75418765]
[1720967913112,0.94223992,3191.6,3190.5,6.75418765]
[1720967913515,0.98816024,3191.6,3190.5,6.75418765]
[1720967914875,0.39223992,3191.6,3191.2,2.3356]
[1720967915140,0.32802542,3191.6,3191.2,4.2406]
[1720967915416,0.49196171,3192.0,3191.2,4.2406]
[1720967915619,0.49196171,3192.0,3191.3,3.0]
[1720967915975,0.49196171,3192.0,3191.6,1.905]
[1720967919807,0.04592032,3191.9,3191.5,0.3275]
[1720967919989,0.49196171,3192.0,3191.5,0.3275]
[1720967920636,0.04592032,3191.9,3191.5,0.025]
[1720967922443,0.49196171,3192.0,3191.5,0.025]
[1720967925643,0.04592032,3191.9,3191.5,0.025]
[1720967926735,0.49196171,3192.0,3191.5,0.025]
[1720967932258,0.05149537,3191.9,3191.5,0.025]
[1720967932557,0.49196171,3192.0,3191.5,0.025]
[1720967932861,0.05087241,3191.9,3191.5,0.025]
[1720967933254,0.49196171,3192.0,3191.5,0.025]
[1720967933647,0.05087241,3191.9,3191.5,0.025]
[1720967933847,0.49196171,3192.0,3191.5,0.025]
[1720967934261,0.05003997,3191.9,3191.5,0.025]
[1720967934627,0.49196171,3192.0,3191.5,0.025]
[1720967935134,0.04941329,3191.9,3191.5,0.025]
[1720967935541,0.49196171,3192.0,3191.5,0.025]
[1720967935725,0.04960322,3191.9,3191.5,0.025]
[1720967938240,0.09552354,3191.9,3191.5,0.025]
[1720967938428,1.63707462,3191.8,3191.5,0.025]
[1720967938629,0.04746865,3191.8,3191.5,0.025]
[1720967938856,1.68454327,3191.8,3191.5,0.025]
[1720967939166,0.04746865,3191.8,3191.5,0.025]
[1720967939327,1.68454327,3191.8,3191.5,0.025]
[1720967939763,0.04592032,3191.7,3191.5,0.025]
[1720967940069,0.04734668,3191.6,3191.5,0.025]
[1720967941027,0.04592032,3191.7,3191.5,0.025]
[1720967941566,0.04755536,3191.6,3191.5,0.025]
[1720967941776,1.68474662,3191.6,3191.5,0.025]
[1720967941943,1.85781331,3191.6,3191.5,0.025]
[1720967942262,0.22062205,3191.6,3191.5,0.025]
[1720967943638,0.04755536,3191.6,3191.5,0.025]
[1720967943957,2.01102955,3191.7,3191.5,0.025]
[1720967944160,0.04770401,3191.6,3191.5,0.025]
[1720967944865,2.01281324,3191.6,3191.5,0.025]
[1720967945084,0.04770401,3191.6,3191.5,0.025]
[1720967948647,0.04770401,3191.6,3191.1,6.75418765]
[1720967948848,1.63777678,3191.4,3191.1,6.75418765]
[1720967949054,1.63777678,3191.4,3190.9,2.33]
[1720967949267,1.63777678,3191.4,3190.9,3.304228]
[1720967949494,1.63777678,3191.3,3191.0,3.0]
[1720967949788,1.63777678,3191.4,3191.0,3.0]
[1720967950288,0.04592032,3191.7,3191.0,3.0]
[1720967950472,1.63793049,3191.4,3191.0,3.0]
[1720967952497,1.63793049,3191.3,3191.0,3.0]
[1720967952690,1.63793049,3191.3,3191.0,3.6304228]
[1720967953491,0.53788203,3192.0,3191.0,3.6304228]
[1720967953784,0.53788203,3192.0,3191.0,3.0]
[1720967955861,1.63883979,3191.3,3191.0,3.0]
[1720967957598,0.4919783,3191.3,3191.0,3.0]
[1720967958267,0.4919783,3191.3,3191.2,0.794]
[1720967971781,2.46421789,3191.3,3191.2,0.794]
[1720967972403,0.4919783,3191.3,3191.2,0.794]
[1720967975093,0.4919783,3191.3,3191.2,1.1734]
[1720967977228,0.4669783,3191.3,3191.2,1.1734]
[1720967980514,0.50933228,3191.3,3191.2,1.1734]
[1720967981999,0.4669783,3191.3,3191.2,1.1734]
[1720967982506,2.11048884,3191.3,3191.2,1.1734]
[1720967982902,0.4669783,3191.3,3191.2,1.1734]
[1720967986809,0.4669783,3191.3,3191.2,0.794]
[1720967987214,0.50952502,3191.3,3191.2,0.794]
[1720967990000,0.4669783,3191.3,3191.2,0.794]
[1720967990204,0.50952502,3191.3,3191.2,0.794]
[1720967993528,0.4669783,3191.3,3191.2,0.794]
[1720967993941,0.50951729,3191.3,3191.2,0.794]
[1720967995126,0.4669783,3191.3,3191.2,0.794]
[1720967995427,0.50951729,3191.3,3191.2,0.794]
[1720967996843,0.4669783,3191.3,3191.2,0.794]
[1720967997196,0.50951342,3191.3,3191.2,0.794]
[1720968000348,0.50951342,3191.3,3191.2,1.1734]
[1720968000558,0.4669783,3191.3,3191.2,1.1734]
[1720968001257,0.4669783,3191.3,3191.2,8.63228]
[1720968001556,1.64364724,3191.6,3191.3,2.50679]
[1720968001721,1.64364724,3191.6,3191.4,4.706529]
[1720968001923,1.64364724,3191.7,3191.5,2.5066]
[1720968002122,1.64364724,3191.7,3191.6,3.794]
[1720968002518,1.6430468,3191.8,3191.6,3.794]
[1720968002722,1.6430468,3191.7,3191.6,5.50657]
[1720968002922,1.6430468,3191.7,3191.6,7.1931399]
[1720968003332,1.6430468,3191.8,3191.6,7.1931399]
[1720968003555,1.6430468,3191.8,3191.7,0.794]
[1720968004175,1.6843847,3191.8,3191.7,0.794]
[1720968005734,0.0413379,3191.8,3191.7,0.794]
[1720968005967,1.64231903,3191.8,3191.7,0.794]
[1720968006339,1.68365758,3191.8,3191.7,0.794]
[1720968007237,1.68365758,3191.8,3191.7,3.930557]
[1720968007439,0.04133855,3191.8,3191.7,9.367157]
[1720968007949,1.64231903,3192.0,3191.8,2.50636]
[1720968008250,1.64231903,3191.9,3191.8,2.50636]
[1720968008450,1.64231903,3192.0,3191.8,7.4083117]
[1720968008659,1.64231903,3192.0,3191.9,0.794]
[1720968009135,2.4233,3192.7,3191.9,0.794]
[1720968009335,1.64191789,3192.0,3191.8,6.6143117]